fUST/lending_fUST_20260120
["ID","MTS","AMOUNT","RATE_DAILY","PERIOD"]
[402818800,1768921840647,-382.28055495,0.00016438,2]
[402818802,1768921840657,-361.01026294,0.0001694,2]
[402818804,1768921840668,-5000.0,0.00017412,2]
[402818805,1768921840679,-196.0,0.00017863,3]
[402818807,1768921840689,-163.40492731,0.00018,2]
[402818809,1768921840700,-1747.12086572,0.00018019,2]
[402818811,1768921840710,-163.40492731,0.000182,2]
[402818813,1768921840721,-602.354,0.0001831,2]
[402818815,1768921840732,-439.903069,0.00018493,2]
[402818817,1768921840745,-151.0,0.00018773,2]
[402818819,1768921840757,-38000.0,0.00018776,3]
[402818821,1768921840767,-15516.89222646,0.00018776,3]
[402818823,1768921840779,-5000.0,0.00018863,2]
[402818824,1768921840789,-303.10001603,0.000189,2]
[402818826,1768921840799,-303.10001603,0.000189,2]
[402818828,1768921840810,-398.79040674,0.0001894,2]
[402818830,1768921840822,-100000.0,0.0001899,2]
[402818832,1768921840832,-303.10001603,0.00019089,2]
[402818834,1768921840842,-303.10001603,0.00019089,2]
[402818836,1768921840853,-300.0,0.000191,2]
[402818838,1768921840864,-507.6079,0.00019178,2]
[402818840,1768921840875,-200.0,0.00019178,2]
[402818842,1768921840886,-507.6079,0.00019178,2]
[402818844,1768921840896,-507.6079,0.00019178,2]
[402818846,1768921840906,-507.6079,0.00019178,2]
[402818848,1768921840917,-507.6079,0.00019178,2]
[402818850,1768921840927,-507.6079,0.00019178,2]
[402818852,1768921840937,-507.6079,0.00019178,2]
[402818854,1768921840947,-507.6079,0.00019178,2]
[402818856,1768921840958,-507.6079,0.00019178,2]
[402818858,1768921840968,-1269.0198,0.00019178,2]
[402818860,1768921840978,-542.23,0.00019178,2]
[402818861,1768921840990,-349.28,0.000192,2]
[402818864,1768921841001,-373.2,0.000192,2]
[402818866,1768921841012,-7026.69,0.000192,2]
[402818867,1768921841023,-167.89,0.000192,2]
[402818869,1768921841033,-303.10001603,0.00019278,2]
[402818871,1768921841043,-303.10001603,0.00019278,2]
[402818873,1768921841053,-303.10001603,0.00019467,2]
[402818875,1768921841064,-303.10001603,0.00019467,2]
[402818877,1768921841074,-198.0,0.00019507,3]
[402818879,1768921841084,-151.0,0.00019551,2]
[402818881,1768921841094,-507.6079,0.00019589,3]
[402818883,1768921841105,-507.6079,0.00019589,3]
[402818885,1768921841115,-507.6079,0.00019589,3]
[402818887,1768921841125,-507.6079,0.00019589,3]
[402818889,1768921841135,-507.6079,0.00019589,3]
[402818891,1768921841145,-507.6079,0.00019589,3]
[402818893,1768921841158,-507.6079,0.00019589,3]
[402818896,1768921841169,-507.6079,0.00019589,3]
[402818898,1768921841179,-507.6079,0.00019589,3]
[402818900,1768921841189,-159.62665952,0.0001961,2]
[402818902,1768921841199,-162.23044371,0.0001961,2]
[402818903,1768921841211,-303.10001603,0.00019656,2]
[402818905,1768921841222,-303.10001603,0.00019656,2]
[402818907,1768921841233,-1277.307459,0.0001976,5]
[402818909,1768921841247,-1000.0,0.0001978,5]
[402818911,1768921841258,-1000.0,0.000198,5]
[402818913,1768921841268,-1000.0,0.0001982,5]
[402818915,1768921841278,-1000.0,0.0001984,5]
[402818917,1768921841287,-454.65002405,0.00019845,4]
[402818918,1768921841299,-454.65002405,0.00019845,4]
[402818920,1768921841310,-1000.0,0.0001986,5]
[402818922,1768921841321,-1000.0,0.0001988,5]
[402818924,1768921841331,-1000.0,0.000199,5]
[402818926,1768921841342,-1000.0,0.0001992,5]
[402818928,1768921841352,-1000.0,0.0001994,5]
[402818930,1768921841362,-1000.0,0.0001996,5]
[402818931,1768921841373,-1848.728552,0.0001998,5]
[402818933,1768921841383,-1000.0,0.0001998,5]
[402818935,1768921841394,-882.45,0.0002,2]
[402818937,1768921841405,-39601.47,0.0002,2]
[402818939,1768921841419,-17955.03466055,0.0002,2]
[402818941,1768921841431,-7880.0,0.0002,2]
[402818943,1768921841442,-1000.0,0.0002,5]
[402818946,1768921841453,-1000.0,0.0002,5]
[402818947,1768921841464,-507.6079,0.0002,4]
[402818949,1768921841474,-507.6079,0.0002,4]
[402818951,1768921841485,-507.6079,0.0002,4]
[402818953,1768921841501,-300.0,0.0002,2]
[402818955,1768921841512,-507.6079,0.0002,4]
[402818957,1768921841522,-507.6079,0.0002,4]
[402818959,1768921841533,-507.6079,0.0002,4]
[402818961,1768921841543,-507.6079,0.0002,4]
[402818963,1768921841554,-507.6079,0.0002,4]
[402818965,1768921841565,-250.0,0.0002,10]
[402818967,1768921841575,-1269.0198,0.0002,4]
[402818969,1768921841586,-454.65002405,0.00020034,4]
[402818971,1768921841596,-454.65002405,0.00020034,4]
[402818973,1768921841607,-500.0,0.000201,7]
[402818975,1768921841618,-250.0,0.000201,10]
[402818977,1768921841629,-250.0,0.000202,10]
[402818979,1768921841639,-159.62665952,0.00020216,5]
[402818981,1768921841651,-454.65002405,0.00020223,4]
[402818983,1768921841661,-454.65002405,0.00020223,4]
[402818984,1768921841671,-250.0,0.000203,10]
[402818986,1768921841682,-151.0,0.0002033,2]
[402818989,1768921841697,-600.0,0.00020398,2]
[402818990,1768921841707,-250.0,0.000204,10]
[402818993,1768921841724,-1500.0,0.00020404,2]
[402818995,1768921841736,-1500.0,0.00020406,2]
[402818996,1768921841750,-6338.8340841,0.00020411,2]
[402818998,1768921841762,-454.65002405,0.00020412,4]
[402819000,1768921841773,-454.65002405,0.00020412,4]
[402819002,1768921841783,-600.0,0.00020414,2]
[402819004,1768921841794,-500.0,0.00020479,2]
[402819007,1768921841805,-349.28,0.000205,2]
[402819008,1768921841815,-373.2,0.000205,2]
[402819010,1768921841826,-7026.69,0.000205,2]
[402819012,1768921841837,-167.89,0.000205,2]
[402819013,1768921841847,-250.0,0.000205,10]
[402819015,1768921841857,-600.0,0.00020501,2]
[402819017,1768921841868,-600.0,0.00020505,2]
[402819019,1768921841878,-600.0,0.00020528,2]
[402819021,1768921841889,-600.0,0.00020531,2]
[402819023,1768921841899,-7530.24,0.00020547,2]
[402819025,1768921841909,-795.351507,0.00020548,2]
[402819027,1768921841923,-600.0,0.00020557,2]
[402819029,1768921841935,-600.0,0.00020569,2]
[402819031,1768921841944,-172.722683,0.0002057,7]
[402819033,1768921841954,-1500.0,0.00020571,2]
[402819035,1768921841964,-500.0,0.00020593,2]
[402819037,1768921841974,-250.0,0.000206,10]
[402819039,1768921841984,-454.65002405,0.00020601,4]
[402819041,1768921841996,-454.65002405,0.00020601,4]
[402819043,1768921842006,-600.0,0.00020611,2]
[402819045,1768921842016,-1500.0,0.00020618,2]
[402819046,1768921842027,-600.0,0.00020639,2]
[402819048,1768921842037,-1500.0,0.00020642,2]
[402819050,1768921842047,-690.890732,0.00020655,7]
[402819052,1768921842057,-172.722684,0.00020655,7]
[402819054,1768921842067,-250.0,0.000207,10]
[402819056,1768921842077,-600.0,0.00020706,2]
[402819058,1768921842087,-1500.0,0.00020714,2]
[402819060,1768921842098,-1056.48901402,0.00020716,30]
[402819062,1768921842107,-1727.226831,0.00020716,7]
[402819064,1768921842117,-1500.0,0.00020734,2]
[402819066,1768921842127,-600.0,0.00020757,2]
[402819068,1768921842137,-250.0,0.000208,10]
[402819069,1768921842146,-600.0,0.00020803,2]
[402819071,1768921842157,-600.0,0.00020828,2]
[402819073,1768921842167,-600.0,0.00020853,2]
[402819075,1768921842177,-4318.067078,0.00020858,7]
[402819077,1768921842187,-600.0,0.00020866,2]
[402819079,1768921842197,-367.57,0.0002089,2]
[402819081,1768921842207,-250.0,0.000209,10]
[402819083,1768921842217,-1500.0,0.00020911,2]
[402819085,1768921842228,-600.0,0.00020935,2]
[402819087,1768921842238,-436.57055053,0.0002094,2]
[402819089,1768921842251,-1500.0,0.00020941,2]
[402819091,1768921842262,-1747.12086572,0.00020955,2]
[402819093,1768921842273,-166.696441,0.00020988,7]
[402819095,1768921842283,-500.0,0.00020994,2]
[402819097,1768921842293,-3000.0,0.00021,2]
[402819099,1768921842304,-250.0,0.00021,10]
[402819101,1768921842314,-3000.0,0.0002101,2]
[402819103,1768921842324,-500.0,0.00021013,2]
[402819105,1768921842334,-3000.0,0.0002102,2]
[402819107,1768921842344,-1056.48901402,0.00021022,30]
[402819109,1768921842354,-3000.0,0.0002103,2]
[402819111,1768921842364,-3000.0,0.0002104,2]
[402819113,1768921842373,-3000.0,0.0002105,2]
[402819115,1768921842383,-3000.0,0.0002106,2]
[402819116,1768921842392,-3000.0,0.0002107,2]
[402819118,1768921842402,-3000.0,0.0002108,2]
[402819120,1768921842412,-3000.0,0.0002109,2]
[402819122,1768921842423,-3000.0,0.000211,2]
[402819124,1768921842432,-250.0,0.000211,10]
[402819126,1768921842442,-151.0,0.00021108,2]
[402819127,1768921842451,-3000.0,0.0002111,2]
[402819129,1768921842461,-3000.0,0.0002112,2]
[402819131,1768921842471,-3000.0,0.0002113,2]
[402819133,1768921842481,-600.0,0.00021139,2]
[402819135,1768921842494,-3000.0,0.0002114,2]
[402819137,1768921842504,-600.0,0.00021147,2]
[402819139,1768921842514,-3000.0,0.0002115,2]
[402819141,1768921842524,-201.0,0.00021151,4]
[402819143,1768921842534,-3000.0,0.0002116,2]
[402819145,1768921842544,-3000.0,0.0002117,2]
[402819147,1768921842555,-3000.0,0.0002118,2]
[402819148,1768921842566,-3000.0,0.0002119,2]
[402819150,1768921842577,-600.0,0.0002119,2]
[402819152,1768921842587,-902.3596719,0.00021197,2]
[402819154,1768921842597,-3000.0,0.000212,2]
[402819156,1768921842607,-3000.0,0.0002121,2]
[402819158,1768921842617,-3000.0,0.0002122,2]
[402819160,1768921842627,-1500.0,0.00021225,2]
[402819162,1768921842638,-3000.0,0.0002123,2]
[402819164,1768921842648,-3000.0,0.0002124,2]
[402819166,1768921842658,-3000.0,0.0002125,2]
[402819168,1768921842669,-3000.0,0.0002126,2]
[402819170,1768921842682,-3000.0,0.0002127,2]
[402819172,1768921842691,-3000.0,0.0002128,2]
[402819174,1768921842705,-3000.0,0.0002129,2]
[402819176,1768921842717,-3000.0,0.000213,2]
[402819178,1768921842727,-159.17,0.00021305,2]
[402819180,1768921842738,-3000.0,0.0002131,2]
[402819182,1768921842756,-3000.0,0.0002132,2]
[402819184,1768921842767,-1056.48901402,0.00021327,30]
[402819186,1768921842778,-3000.0,0.0002133,2]
[402819188,1768921842789,-3000.0,0.0002134,2]
[402819191,1768921842801,-600.0,0.00021343,2]
[402819194,1768921842811,-3000.0,0.0002135,2]
[402819196,1768921842822,-600.0,0.00021351,2]
[402819198,1768921842832,-3000.0,0.0002136,2]
[402819200,1768921842842,-1500.0,0.00021361,2]
[402819202,1768921842853,-3000.0,0.0002137,2]
[402819204,1768921842864,-3000.0,0.0002138,2]
[402819207,1768921842875,-1500.0,0.00021388,2]
[402819210,1768921842888,-3000.0,0.0002139,2]
[402819213,1768921842899,-600.0,0.00021398,2]
[402819216,1768921842909,-39601.47,0.000214,2]
[402819217,1768921842919,-3000.0,0.000214,2]
[402819220,1768921842929,-600.0,0.000214,2]
[402819222,1768921842938,-3000.0,0.0002141,2]
[402819224,1768921842948,-1500.0,0.00021412,2]
[402819227,1768921842958,-3000.0,0.0002142,2]
[402819230,1768921842968,-4858.29514,0.0002143,2]
[402819232,1768921842978,-1500.0,0.00021443,2]
[402819234,1768921842987,-600.0,0.00021464,2]
[402819236,1768921843002,-600.0,0.0002154,2]
[402819238,1768921843011,-1056.48901402,0.00021632,30]
[402819240,1768921843020,-600.0,0.00021675,2]
[402819242,1768921843030,-349.28,0.000217,2]
[402819244,1768921843039,-373.2,0.000217,2]
[402819246,1768921843048,-7026.69,0.000217,2]
[402819247,1768921843058,-167.89,0.000217,2]
[402819249,1768921843069,-1500.0,0.00021719,2]
[402819251,1768921843078,-600.0,0.00021737,2]
[402819253,1768921843088,-328.84,0.000218,3]
[402819255,1768921843098,-1500.0,0.00021802,2]
[402819258,1768921843108,-1500.0,0.00021806,2]
[402819260,1768921843118,-600.0,0.00021831,2]
[402819262,1768921843128,-1500.0,0.00021866,2]
[402819264,1768921843138,-1500.0,0.0002187,2]
[402819266,1768921843148,-735.13,0.00021885,2]
[402819268,1768921843158,-151.0,0.00021887,2]
[402819270,1768921843169,-1500.0,0.00021888,2]
[402819272,1768921843178,-439.903069,0.00021918,2]
[402819274,1768921843188,-600.0,0.00021922,2]
[402819276,1768921843197,-1500.0,0.00021927,2]
[402819278,1768921843206,-1056.48901402,0.00021938,30]
[402819280,1768921843215,-600.0,0.0002194,2]
[402819282,1768921843225,-600.0,0.00021941,2]
[402819284,1768921843235,-1500.0,0.00021977,2]
[402819286,1768921843248,-778.63105744,0.00022,3]
[402819288,1768921843259,-1527.53,0.00022,2]
[402819291,1768921843268,-578.8,0.00022,7]
[402819293,1768921843278,-184.0,0.00022,2]
[402819296,1768921843288,-1500.0,0.00022016,2]
[402819299,1768921843298,-600.0,0.00022032,2]
[402819301,1768921843307,-1500.0,0.00022056,2]
[402819302,1768921843316,-1500.0,0.00022091,2]
[402819303,1768921843325,-600.0,0.00022092,2]
[402819304,1768921843334,-600.0,0.00022093,2]
[402819305,1768921843343,-600.0,0.00022097,2]
[402819306,1768921843352,-500.0,0.000221,7]
[402819307,1768921843361,-600.0,0.00022111,2]
[402819308,1768921843370,-600.0,0.00022128,2]
[402819309,1768921843379,-1500.0,0.00022171,2]
[402819310,1768921843387,-600.0,0.00022173,2]
[402819311,1768921843396,-600.0,0.0002218,2]
[402819312,1768921843405,-600.0,0.00022208,2]
[402819313,1768921843414,-1500.0,0.00022224,2]
[402819314,1768921843423,-1500.0,0.00022226,2]
[402819315,1768921843432,-1056.48901402,0.00022243,30]
[402819316,1768921843441,-600.0,0.0002225,2]
[402819317,1768921843450,-2898.8072169,0.0002227,2]
[402819318,1768921843459,-600.0,0.00022285,2]
[402819319,1768921843468,-500.0,0.00022303,2]
[402819320,1768921843477,-600.0,0.00022308,2]
[402819321,1768921843487,-600.0,0.00022323,2]
[402819322,1768921843499,-600.0,0.00022327,2]
[402819323,1768921843508,-330.0,0.00022363,2]
[402819324,1768921843517,-602.92061325,0.00022382,2]
[402819325,1768921843526,-1043.40716341,0.00022387,2]
[402819326,1768921843535,-300.0,0.00022466,2]
[402819327,1768921843544,-200.0,0.00022466,2]
[402819328,1768921843553,-1056.48901402,0.00022549,30]
[402819329,1768921843562,-151.0,0.00022665,2]
[402819330,1768921843571,-203.0,0.00022795,8]
[402819331,1768921843581,-300.0,0.00022807,2]
[402819332,1768921843590,-1056.48901402,0.00022854,30]
[402819333,1768921843599,-1102.7,0.0002288,2]
[402819334,1768921843608,-167.89,0.000229,7]
[402819335,1768921843617,-800.0,0.00022906,2]
[402819336,1768921843627,-2000.0,0.00022935,7]
[402819337,1768921843636,-474.35069433,0.0002294,2]
[402819338,1768921843646,-4577.76381878,0.00023,4]
[402819339,1768921843655,-1041.66666667,0.00023,3]
[402819340,1768921843665,-1023.78834759,0.00023,2]
[402819341,1768921843674,-450.0,0.00023014,2]
[402819342,1768921843686,-250.0,0.00023014,2]
[402819343,1768921843695,-349.28,0.000231,7]
[402819344,1768921843704,-373.2,0.000231,7]
[402819345,1768921843713,-7026.69,0.000231,14]
[402819346,1768921843723,-500.0,0.000231,7]
[402819347,1768921843732,-5000.0,0.00023105,2]
[402819348,1768921843743,-5000.0,0.00023105,2]
[402819349,1768921843754,-5000.0,0.00023105,2]
[402819350,1768921843763,-8964.69750542,0.00023119,2]
[402819351,1768921843772,-5000.0,0.00023119,2]
[402819352,1768921843781,-5000.0,0.00023119,2]
[402819353,1768921843790,-5000.0,0.00023119,2]
[402819354,1768921843800,-5000.0,0.00023119,2]
[402819355,1768921843809,-1056.48901402,0.00023159,30]
[402819356,1768921843818,-800.0,0.00023266,2]
[402819357,1768921843826,-7530.24,0.00023287,4]
[402819358,1768921843836,-2000.0,0.00023289,7]
[402819359,1768921843845,-307.0,0.000234,2]
[402819360,1768921843854,-151.0,0.00023443,2]
[402819361,1768921843863,-1056.48901402,0.00023465,30]
[402819362,1768921843873,-400635.55692343,0.0002352,2]
[402819363,1768921843883,-600.0,0.00023562,2]
[402819364,1768921843892,-211.25627413,0.00023562,2]
[402819365,1768921843901,-800.0,0.00023591,2]
[402819378,1768921844042,-1527.53,0.000236,2]
[402819380,1768921844052,-578.8,0.000236,7]
[402819382,1768921844063,-2000.0,0.00023642,7]
[402819384,1768921844072,-800.0,0.00023681,2]
[402819386,1768921844081,-1056.48901402,0.0002377,30]
[402819388,1768921844091,-1470.27,0.00023874,2]
[402819390,1768921844100,-800.0,0.00023891,2]
[402819392,1768921844109,-1747.12086572,0.00023891,2]
[402819393,1768921844119,-800.0,0.00023965,2]
[402819394,1768921844129,-2000.0,0.00023995,7]
[402819395,1768921844138,-1041.66666667,0.00024,7]
[402819396,1768921844147,-1021.0,0.00024,2]
[402819397,1768921844157,-800.0,0.00024064,2]
[402819398,1768921844166,-1056.48901402,0.00024075,30]
[402819399,1768921844176,-500.0,0.000241,7]
[402819400,1768921844185,-750.0,0.0002411,2]
[402819401,1768921844194,-800.0,0.00024116,2]
[402819402,1768921844204,-800.0,0.00024155,2]
[402819403,1768921844214,-151.0,0.00024222,2]
[402819404,1768921844224,-1351.88359924,0.00024222,2]
[402819405,1768921844234,-5407.53439696,0.00024222,2]
[402819406,1768921844245,-489.64611958,0.00024222,2]
[402819407,1768921844255,-1958.58447831,0.00024222,2]
[402819408,1768921844265,-4406.8150762,0.00024222,2]
[402819409,1768921844275,-7834.33791324,0.00024222,2]
[402819410,1768921844286,-800.0,0.00024294,2]
[402819411,1768921844296,-800.0,0.00024306,2]
[402819412,1768921844306,-800.0,0.0002431,2]
[402819413,1768921844315,-800.0,0.00024341,2]
[402819414,1768921844325,-2000.0,0.00024348,7]
[402819415,1768921844334,-2112.87802803,0.00024381,30]
[402819416,1768921844344,-1267.0,0.00024388,10]
[402819417,1768921844354,-167.89,0.000244,7]
[402819418,1768921844364,-205.0,0.00024438,13]
[402819419,1768921844374,-800.0,0.00024486,2]
[402819420,1768921844384,-39601.47,0.000245,2]
[402819421,1768921844394,-1334.61496379,0.000245,2]
[402819422,1768921844404,-800.0,0.00024512,2]
[402819423,1768921844414,-800.0,0.0002453,2]
[402819424,1768921844424,-800.0,0.00024608,2]
[402819425,1768921844434,-800.0,0.00024627,2]
[402819426,1768921844444,-800.0,0.00024635,2]
[402819427,1768921844454,-900.0,0.00024658,2]
[402819428,1768921844464,-200.0,0.00024658,2]
[402819429,1768921844474,-500.0,0.00024658,2]
[402819430,1768921844483,-800.0,0.00024693,2]
[402819431,1768921844495,-328.81,0.000247,3]
[402819432,1768921844505,-2000.0,0.00024702,7]
[402819433,1768921844515,-500.0,0.00024795,2]
[402819434,1768921844525,-602.8966481,0.00024822,2]
[402819435,1768921844534,-184.9581126,0.00024822,2]
[402819436,1768921844544,-602.8966481,0.00024822,2]
[402819437,1768921844554,-602.8966481,0.00024822,2]
[402819438,1768921844565,-602.8966481,0.00024822,2]
[402819439,1768921844575,-602.8966481,0.00024822,2]
[402819440,1768921844584,-650.0436638,0.00024822,2]
[402819441,1768921844593,-153.0,0.00024822,2]
[402819442,1768921844603,-153.0,0.00024822,2]
[402819443,1768921844612,-153.0,0.00024822,2]
[402819444,1768921844621,-388.792965,0.00024826,2]
[402819445,1768921844630,-305.2501772,0.00024826,2]
[402819446,1768921844640,-305.2501772,0.00024826,2]
[402819447,1768921844650,-305.2501772,0.00024826,2]
[402819448,1768921844659,-305.2501772,0.00024826,2]
[402819449,1768921844669,-305.2501772,0.00024826,2]
[402819450,1768921844678,-305.2501772,0.00024826,2]
[402819451,1768921844691,-305.2501772,0.00024826,2]
[402819452,1768921844700,-619.6516899,0.00024826,2]
[402819453,1768921844709,-153.0,0.00024826,2]
[402819454,1768921844718,-800.0,0.00024859,2]
[402819455,1768921844727,-800.0,0.00024865,2]
[402819456,1768921844737,-1837.83,0.00024869,2]
[402819457,1768921844750,-13866.9584327,0.00024878,2]
[402819458,1768921844762,-564.8995258,0.00024887,2]
[402819459,1768921844772,-60857.356435,0.00024887,2]
[402819460,1768921844781,-1694.6985774,0.00024887,2]
[402819461,1768921844791,-615433.195339,0.000249,2]
[402819462,1768921844801,-578.0,0.00024932,7]
[402819463,1768921844810,-500.0,0.00024932,2]
[402819464,1768921844819,-512.13083813,0.0002494,2]
[402819465,1768921844829,-348.0,0.0002495,3]
[402819466,1768921844839,-348.0,0.0002495,3]
[402819467,1768921844848,-348.0,0.0002495,3]
[402819468,1768921844858,-270.2703129,0.0002495,3]
[402819469,1768921844868,-152.0,0.0002495,3]
[402819470,1768921844878,-152.0,0.0002495,3]
[402819471,1768921844888,-152.0,0.0002495,3]
[402819472,1768921844898,-152.0,0.0002495,3]
[402819473,1768921844907,-152.0,0.0002495,3]
[402819474,1768921844917,-153.30769887,0.0002495,3]
[402819475,1768921844926,-500.0,0.00024954,9]
[402819476,1768921844936,-1212.884577,0.0002498,5]
[402819477,1768921844945,-3177.72168386,0.0002498,5]
[402819478,1768921844955,-1382.53021998,0.0002498,5]
[402819479,1768921844964,-5524.59075905,0.0002498,5]
[402819480,1768921844974,-151.0,0.00024999,4]
[402819481,1768921844984,-151.0,0.00024999,4]
[402819482,1768921844998,-250.0,0.00024999,4]
[402819483,1768921845007,-445.202766,0.00024999,4]
[402819484,1768921845017,-461.67526834,0.00024999,4]
[402819485,1768921845026,-250.0,0.00024999,4]
[402819486,1768921845035,-198.0,0.00024999,4]
[402819487,1768921845044,-478.75725327,0.00024999,4]
[402819488,1768921845054,-496.47127164,0.00024999,4]
[402819489,1768921845063,-443.33930495,0.00024999,4]
[402819490,1768921845073,-151.0,0.00024999,4]
[402819491,1768921845083,-151.0,0.00024999,4]
[402819492,1768921845093,-250.0,0.00024999,4]
[402819493,1768921845103,-250.0,0.00024999,4]
[402819494,1768921845114,-14246.44106875,0.00025,15]
[402819495,1768921845124,-1086.62432353,0.00025,2]
[402819496,1768921845134,-2677.45120601,0.00025,2]
[402819497,1768921845144,-10364.0,0.00025,2]
[402819498,1768921845154,-500.0,0.00025,2]
[402819499,1768921845164,-94631.02851002,0.00025,8]
[402819500,1768921845174,-35770.16844548,0.00025,2]
[402819501,1768921845183,-1041.66666667,0.00025,30]
[402819502,1768921845193,-200.0,0.00025,17]
[402819503,1768921845202,-848.17586756,0.00025,30]
[402819504,1768921845212,-1000.0,0.00025,5]
[402819505,1768921845221,-160.0,0.00025,3]
[402819507,1768921845230,-160.97220368,0.00025,5]
[402819508,1768921845239,-159.081671,0.00025,7]
[402819510,1768921845251,-1000.0,0.00025,2]
[402819512,1768921845261,-153.188297,0.00025,7]
[402819513,1768921845271,-151.0,0.00025,7]
[402819514,1768921845280,-151.0,0.00025,7]
[402819515,1768921845290,-151.0,0.00025,7]
[402819516,1768921845299,-159.673783,0.00025,7]
[402819517,1768921845309,-518.457682,0.00025,7]
[402819518,1768921845318,-518.457682,0.00025,7]
[402819519,1768921845327,-518.457682,0.00025,7]
[402819520,1768921845336,-518.457682,0.00025,7]
[402819521,1768921845345,-151.0,0.00025,2]
[402819522,1768921845355,-806.810521,0.00025,7]
[402819523,1768921845364,-806.810521,0.00025,7]
[402819524,1768921845374,-806.810521,0.00025,7]
[402819525,1768921845383,-806.810521,0.00025,7]
[402819526,1768921845393,-214.125301,0.00025,7]
[402819527,1768921845402,-1585.455564,0.00025,7]
[402819528,1768921845412,-1585.455564,0.00025,7]
[402819529,1768921845422,-1585.455564,0.00025,7]
[402819530,1768921845431,-1585.455564,0.00025,7]
[402819531,1768921845440,-182.576717,0.00025,7]
[402819532,1768921845449,-151.0,0.00025,7]
[402819534,1768921845459,-216.77021,0.00025,7]
[402819536,1768921845467,-151.0,0.00025,7]
[402819537,1768921845477,-1021.0,0.00025,2]
[402819539,1768921845486,-578.0,0.00025,7]
[402819540,1768921845497,-151.0,0.00025,2]
[402819542,1768921845507,-2000.0,0.00025055,7]
[402819544,1768921845516,-154.057891,0.00025067,7]
[402819545,1768921845525,-151.0,0.00025067,7]
[402819546,1768921845534,-151.0,0.00025067,7]
[402819547,1768921845544,-151.0,0.00025067,7]
[402819548,1768921845553,-177.452165,0.00025067,7]
[402819549,1768921845563,-151.0,0.00025067,7]
[402819550,1768921845572,-151.0,0.00025067,7]
[402819551,1768921845581,-284.822479,0.00025067,7]
[402819552,1768921845590,-458.614536,0.00025067,7]
[402819553,1768921845600,-458.614536,0.00025067,7]
[402819554,1768921845609,-458.614536,0.00025067,7]
[402819555,1768921845618,-151.0,0.00025067,7]
[402819556,1768921845629,-458.614536,0.00025067,7]
[402819557,1768921845641,-151.0,0.00025067,7]
[402819558,1768921845655,-151.0,0.00025067,7]
[402819559,1768921845668,-151.0,0.00025067,7]
[402819560,1768921845684,-151.0,0.00025067,7]
[402819561,1768921845696,-151.0,0.00025067,7]
[402819562,1768921845706,-151.0,0.00025067,7]
[402819563,1768921845718,-151.0,0.00025067,7]
[402819564,1768921845731,-745.803852,0.00025067,7]
[402819565,1768921845746,-745.803852,0.00025067,7]
[402819566,1768921845757,-745.803852,0.00025067,7]
[402819567,1768921845769,-745.803852,0.00025067,7]
[402819568,1768921845782,-500.0,0.00025069,2]
[402819569,1768921845795,-500.0,0.000251,7]
[402819570,1768921845806,-1424.97,0.000251,6]
[402819571,1768921845818,-580.95208891,0.000252,5]
[402819572,1768921845831,-500.0,0.00025205,30]
[402819573,1768921845844,-500.0,0.00025205,30]
[402819576,1768921845858,-500.0,0.00025205,30]
[402819580,1768921845869,-500.0,0.00025205,30]
[402819582,1768921845881,-500.0,0.00025205,30]